bitfinex/quotes_SOLUSD_20220212
["timestamp","ask_amount","ask_price","bid_price","bid_amount"]
[1644670261620,27.50210974,95.339,95.266,0.25]
[1644670261819,5.496,95.338,95.266,0.25]
[1644670262025,15.7491,95.33,95.266,0.25]
[1644670262220,5.246,95.329,95.266,0.25]
[1644670262720,5.246,95.338,95.246,0.25]
[1644670262920,5.247,95.328,95.246,46.48771243]
[1644670263120,5.497,95.338,95.246,46.48771243]
[1644670263723,15.7506,95.32,95.246,46.48771243]
[1644670263923,5.247,95.319,95.246,46.48771243]
[1644670264123,5.247,95.363,95.25,15.11]
[1644670264324,5.247,95.363,95.251,0.25]
[1644670264523,52.8126,95.371,95.251,15.48949604]
[1644670264722,52.8126,95.371,95.252,15.23949604]
[1644670264941,52.8126,95.371,95.252,17.62316395]
[1644670265142,33.61344481,95.37,95.253,0.25]
[1644670265340,5.245,95.369,95.254,5.245]
[1644670265740,7.62866791,95.369,95.255,0.25]
[1644670265943,2.38366791,95.368,95.255,0.25]
[1644670266140,5.245,95.367,95.255,0.25]
[1644670266341,104.75,95.366,95.255,0.25]
[1644670266545,104.5,95.359,95.231,5.245]
[1644670266749,5.496,95.358,95.231,5.245]
[1644670266947,22.63358444,95.358,95.21,5.246]
[1644670267244,19.52125235,95.357,95.21,5.246]
[1644670267444,19.52125235,95.357,95.19,20.357]
[1644670267445,0.48,95.351,95.19,20.357]
[1644670267647,2.217687,95.339,95.19,51.07373162]
[1644670267845,15.11,95.33,95.19,51.07373162]
[1644670268045,104.5,95.329,95.19,51.07373162]
[1644670268244,109.998,95.329,95.191,5.248]
[1644670268443,0.79811615,95.328,95.191,5.248]
[1644670268645,5.248,95.327,95.191,5.248]
[1644670268845,104.75,95.326,95.191,5.248]
[1644670269049,5.248,95.325,95.191,5.248]
[1644670269346,104.75,95.324,95.191,5.248]
[1644670269548,15.11,95.32,95.192,0.25]
[1644670269746,47.10430213,95.29,95.192,2.63366791]
[1644670269947,15.7589,95.29,95.193,2.38366791]
[1644670270150,15.7589,95.29,95.193,3.86242764]
[1644670270349,15.7589,95.29,95.194,0.25]
[1644670270547,15.7589,95.29,95.194,2.63366791]
[1644670270746,15.7589,95.29,95.2,15.7553]
[1644670270949,5.499,95.289,95.2,30.8653]
[1644670271148,0.25,95.289,95.201,7.88266791]
[1644670271550,15.7581,95.28,95.202,2.38366791]
[1644670271748,0.25,95.279,95.202,2.38366791]
[1644670271949,5.499,95.279,95.202,2.38366791]
[1644670272759,5.499,95.279,95.203,0.25]
[1644670272955,0.25,95.279,95.203,0.25]
[1644670275364,5.249,95.278,95.203,0.25]
[1644670275560,15.289,95.278,95.203,0.25]
[1644670275761,15.7595,95.27,95.203,0.25]
[1644670275970,5.25,95.269,95.201,0.25]
[1644670276162,0.25,95.269,95.201,0.25]
[1644670276361,5.25,95.276,95.181,24.4462]
[1644670276566,5.25,95.268,95.181,24.4462]
[1644670276767,0.25,95.267,95.181,24.4462]
[1644670276972,7.86,95.267,95.181,24.4462]
[1644670277162,15.7612,95.26,95.181,24.4462]
[1644670277363,5.25,95.259,95.181,24.4462]
[1644670277561,5.5,95.259,95.181,24.4462]
[1644670277965,3.69230895,95.258,95.183,44.36413342]
[1644670278161,5.25,95.257,95.183,44.36413342]
[1644670278363,5.5,95.257,95.184,0.25]
[1644670278562,0.25,95.257,95.184,2.63366791]
[1644670278761,0.25,95.257,95.185,5.25]
[1644670278964,0.25,95.257,95.185,2.38366791]
[1644670279163,0.25,95.257,95.186,0.25]
[1644670279566,0.25,95.268,95.187,2.38366791]
[1644670279765,5.25,95.267,95.188,0.25]
[1644670280164,0.25,95.266,95.189,2.38366791]
[1644670280366,5.25,95.265,95.189,2.38366791]
[1644670280569,15.7607,95.26,95.19,0.25]
[1644670280767,5.5,95.259,95.19,0.25]
[1644670280968,0.25,95.259,95.19,0.25]
[1644670281374,5.25,95.258,95.19,0.25]
[1644670281773,0.25,95.257,95.184,0.25]
[1644670282167,5.25,95.256,95.184,0.25]
[1644670282569,0.25,95.255,95.184,0.25]
[1644670282768,0.25,95.255,95.174,0.25]
[1644670282769,15.7622,95.25,95.174,0.25]
[1644670282969,5.251,95.249,95.174,0.25]
[1644670283270,5.501,95.249,95.174,0.25]
[1644670283468,0.25,95.249,95.174,0.25]
[1644670283669,5.251,95.248,95.174,39.92987146]
[1644670284070,0.25,95.247,95.174,39.92987146]
[1644670284270,5.251,95.246,95.174,39.92987146]
[1644670284671,0.25,95.245,95.174,39.92987146]
[1644670284876,4.74991258,95.239,95.174,39.92987146]
[1644670285273,0.25,95.238,95.174,0.25]
[1644670285475,5.501,95.238,95.171,5.251]
[1644670285874,15.7656,95.23,95.171,5.251]
[1644670286273,0.25,95.229,95.171,5.251]
[1644670286474,0.25,95.229,95.164,0.52520572]
[1644670286872,0.25,95.229,95.164,0.77520572]
[1644670287273,52.5567,95.25,95.165,7.63566791]
[1644670287472,5.252,95.269,95.165,7.63566791]
[1644670287674,5.252,95.269,95.17,15.11]
[1644670287875,5.251,95.289,95.172,1.47875973]
[1644670288078,5.251,95.289,95.171,5.251]
[1644670288079,5.251,95.268,95.171,7.88466791]
[1644670288275,29.89206843,95.268,95.172,25.90986791]
[1644670288478,5.25,95.267,95.172,25.90986791]
[1644670288675,15.763,95.25,95.173,0.25]
[1644670288875,5.251,95.249,95.173,0.25]
[1644670289076,0.25,95.249,95.173,2.63366791]
[1644670289276,5.251,95.248,95.173,2.63366791]
[1644670289477,5.501,95.265,95.173,2.63366791]
[1644670289677,0.25,95.247,95.173,2.63366791]
[1644670289977,5.251,95.246,95.173,2.63366791]
[1644670290180,5.251,95.264,95.173,2.63366791]
[1644670290375,0.25,95.245,95.173,0.25]
[1644670290576,5.251,95.244,95.173,0.25]
[1644670290781,15.7642,95.24,95.173,0.25]
[1644670290981,5.93906338,95.239,95.173,0.25]
[1644670291195,6.18906338,95.239,95.173,0.25]
[1644670291797,15.7642,95.24,95.173,0.25]
[1644670291996,5.251,95.269,95.173,0.25]
[1644670291997,15.7619,95.26,95.174,5.251]
[1644670292197,5.251,95.259,95.175,0.25]
[1644670292396,5.251,95.259,95.176,5.251]
[1644670292597,5.251,95.259,95.176,7.63466791]
[1644670292897,31.53720781,95.258,95.177,2.63366791]
[1644670293096,5.251,95.257,95.178,5.251]
[1644670293295,5.501,95.257,95.179,0.25]
[1644670293500,5.501,95.257,95.18,5.251]
[1644670293696,5.501,95.257,95.181,0.25]
[1644670293899,5.501,95.257,95.182,5.251]
[1644670294096,5.501,95.257,95.182,7.63466791]
[1644670294298,5.501,95.257,95.183,0.25]
[1644670294497,5.501,95.257,95.183,2.63366791]
[1644670294696,5.501,95.257,95.184,2.38366791]
[1644670295098,5.501,95.257,95.185,0.25]
[1644670295498,5.501,95.257,95.186,2.38366791]
[1644670295699,5.501,95.257,95.187,0.25]
[1644670295903,5.501,95.257,95.191,1.47875973]
[1644670296300,5.501,95.257,95.192,1.72875973]
[1644670297004,5.501,95.257,95.192,0.25]
[1644670297403,15.7623,95.25,95.192,0.25]
[1644670298003,15.7623,95.25,95.188,1.47875973]
[1644670298206,15.7623,95.25,95.189,1.72875973]
[1644670298404,5.251,95.249,95.19,1.47875973]
[1644670298802,5.251,95.249,95.191,0.25]
[1644670299004,5.251,95.249,95.191,2.63366791]
[1644670299318,15.7642,95.24,95.185,1.47875973]
[1644670299505,15.7642,95.24,95.178,1.47875973]
[1644670299704,5.501,95.239,95.175,1.47875973]
[1644670299904,0.25,95.239,95.174,1.47875973]
[1644670300304,0.25,95.239,95.17,1.47875973]
[1644670300506,5.251,95.238,95.17,1.47875973]
[1644670300706,4.293924,95.219,95.17,1.47875973]
[1644670300907,5.252,95.218,95.164,0.52520572]
[1644670301110,5.502,95.218,95.164,0.52520572]
[1644670302711,15.7701,95.21,95.164,0.52520572]
[1644670302908,5.252,95.209,95.164,0.52520572]
[1644670303108,5.502,95.209,95.164,0.52520572]
[1644670303715,47.4331,95.208,95.134,1.47875973]
[1644670303911,15.7709,95.2,95.12,1.47875973]
[1644670304113,5.253,95.199,95.12,1.47875973]
[1644670304311,31.01200209,95.198,95.12,1.47875973]
[1644670304512,5.253,95.197,95.119,1.47875973]
[1644670304714,5.503,95.197,95.101,53.2742]
[1644670304916,15.7747,95.18,95.101,53.2742]
[1644670305114,5.255,95.179,95.101,53.2742]
[1644670305314,4.293924,95.178,95.101,53.2742]
[1644670305516,5.255,95.177,95.089,1.47875973]
[1644670305714,29.3838,95.177,95.099,47.43151546]
[1644670306015,5.255,95.207,95.102,3.86242764]
[1644670306218,5.255,95.207,95.109,1.47875973]
[1644670306418,5.253,95.229,95.112,1.47875973]
[1644670306616,15.773,95.19,95.112,1.47875973]
[1644670306816,33.0992794,95.189,95.11,2.38366791]
[1644670307018,38.3522794,95.189,95.113,2.38366791]
[1644670307217,38.3522794,95.189,95.114,0.25]
[1644670307419,61.4910794,95.189,95.109,0.25]
[1644670307620,73.48474731,95.189,95.109,0.25]
[1644670307817,0.25,95.188,95.109,0.25]
[1644670308020,5.253,95.187,95.109,0.25]
[1644670308218,15.7748,95.18,95.109,0.25]
[1644670308419,15.7748,95.18,95.109,2.38366791]
[1644670308618,56.2380794,95.189,95.11,5.255]
[1644670308819,5.253,95.187,95.11,0.25]
[1644670309017,5.253,95.188,95.111,2.38366791]
[1644670309221,5.253,95.207,95.112,0.25]
[1644670309420,5.253,95.207,95.12,15.7684]
[1644670309622,5.253,95.228,95.12,30.8784]
[1644670309918,5.253,95.228,95.122,1.47875973]
[1644670310120,32.13910894,95.233,95.125,1.47875973]
[1644670310320,32.13910894,95.233,95.13,15.7656]
[1644670310321,15.7647,95.23,95.13,15.7656]
[1644670310523,15.7647,95.23,95.14,15.11]
[1644670310720,5.502,95.229,95.142,35.36374854]
[1644670311220,5.252,95.229,95.143,2.63366791]
[1644670311624,15.7647,95.23,95.144,7.63566791]
[1644670311821,5.252,95.229,95.145,0.25]
[1644670312022,5.252,95.229,95.145,2.63366791]
[1644670312220,5.252,95.229,95.146,5.252]
[1644670312420,5.252,95.229,95.146,2.38366791]
[1644670312620,0.25,95.228,95.147,2.63366791]
[1644670312820,15.7666,95.22,95.148,0.25]
[1644670313028,15.7666,95.22,95.148,2.63366791]
[1644670313222,3.16681715,95.218,95.148,2.63366791]
[1644670313422,0.25,95.219,95.148,2.63366791]
[1644670313622,24.0127,95.232,95.16,15.11]
[1644670313623,5.253,95.231,95.16,15.11]
[1644670313823,5.252,95.258,95.161,0.25]
[1644670314029,15.7647,95.24,95.161,32.01646791]
[1644670314223,15.7647,95.24,95.162,2.38366791]
[1644670314427,5.252,95.239,95.163,37.47930339]
[1644670314623,15.7647,95.24,95.163,37.72930339]
[1644670314826,15.7647,95.24,95.164,2.38366791]
[1644670315224,15.7647,95.24,95.165,0.25]
[1644670315424,15.7647,95.24,95.17,15.11]
[1644670315827,15.7615,95.26,95.171,2.63366791]
[1644670316026,5.252,95.268,95.171,2.63366791]
[1644670316231,5.251,95.283,95.172,2.38366791]
[1644670316535,5.251,95.283,95.173,23.8217]
[1644670316735,28.9634,95.299,95.173,24.0717]
[1644670316929,5.25,95.299,95.18,15.7585]
[1644670317130,15.7547,95.3,95.19,67.6173]
[1644670317355,5.25,95.318,95.191,23.2586]
[1644670317356,23.6666,95.317,95.191,23.2586]
[1644670317531,5.249,95.316,95.191,25.64226791]
[1644670317732,5.249,95.316,95.196,1.47875973]
[1644670317933,23.6666,95.317,95.21,15.11]
[1644670318234,23.6666,95.317,95.221,34.49159723]
[1644670318431,23.6666,95.317,95.222,5.248]
[1644670318644,0.25,95.316,95.222,5.498]
[1644670318834,5.248,95.315,95.223,2.38366791]
[1644670319038,5.248,95.315,95.224,23.9038]
[1644670319235,15.7497,95.33,95.23,15.7501]
[1644670319436,15.7497,95.33,95.24,15.11]
[1644670319635,0.25,95.329,95.241,28.4409]
[1644670319933,0.25,95.329,95.242,38.21203472]
[1644670319934,26.63238499,95.329,95.242,38.21203472]
[1644670320135,5.247,95.328,95.242,38.21203472]
[1644670320334,15.7503,95.32,95.242,38.21203472]
[1644670320536,5.247,95.319,95.242,38.21203472]
[1644670320735,5.247,95.319,95.243,2.38366791]
[1644670320936,15.7503,95.32,95.244,5.247]
[1644670321339,0.25,95.319,95.245,2.38366791]
[1644670321539,8.6735411,95.309,95.242,38.21203472]
[1644670321840,0.25,95.308,95.242,38.21203472]
[1644670322036,5.497,95.308,95.242,38.21203472]
[1644670322637,15.7553,95.29,95.242,38.21203472]
[1644670322937,0.25,95.289,95.243,0.25]
[1644670323743,0.25,95.289,95.221,28.1235]
[1644670323940,5.249,95.288,95.21,15.11]
[1644670324147,5.249,95.288,95.19,5.249]
[1644670324148,5.249,95.288,95.221,0.25]
[1644670324342,0.25,95.287,95.221,0.25]
[1644670324539,5.249,95.286,95.221,0.25]
[1644670324739,0.25,95.285,95.221,0.25]
[1644670324967,5.249,95.284,95.212,41.98417918]
[1644670325360,0.25,95.283,95.212,41.98417918]
[1644670325567,5.249,95.282,95.212,41.98417918]
[1644670325761,15.7591,95.27,95.212,41.98417918]
[1644670326162,0.25,95.269,95.212,41.98417918]
[1644670326363,0.25,95.269,95.213,0.25]
[1644670327361,0.25,95.269,95.212,0.25]
[1644670327961,15.7591,95.27,95.212,0.25]
[1644670328161,5.249,95.269,95.212,0.25]
[1644670328961,5.249,95.269,95.212,47.89857384]
[1644670329662,15.7591,95.27,95.213,5.249]
[1644670330063,15.7591,95.27,95.214,0.25]
[1644670330664,0.25,95.269,95.214,0.25]
[1644670330863,5.499,95.269,95.214,0.25]
[1644670331265,5.499,95.269,95.213,0.25]
[1644670331462,15.7591,95.27,95.213,0.25]
[1644670334670,5.499,95.269,95.213,0.25]
[1644670335869,0.25,95.269,95.213,0.25]
[1644670337669,15.7603,95.26,95.213,0.25]
[1644670338479,5.249,95.268,95.213,0.25]
[1644670338773,9.94363403,95.512,95.213,0.25]
[1644670338774,5.249,95.287,95.22,15.11]
[1644670338971,1.46640056,95.329,95.221,5.249]
[1644670339173,54.7217,95.333,95.221,7.88266791]
[1644670339471,24.88614737,95.332,95.222,2.38366791]
[1644670339676,15.7513,95.32,95.231,40.63231488]
[1644670339873,5.247,95.319,95.231,40.63231488]
[1644670340076,0.25,95.319,95.232,0.25]
[1644670340276,5.247,95.318,95.232,9.78366791]
[1644670340574,0.25,95.33,95.233,2.38366791]
[1644670340782,0.25,95.331,95.234,0.25]
[1644670341175,0.25,95.331,95.235,2.38366791]
[1644670341384,49.4747,95.333,95.236,0.25]
[1644670341582,49.4747,95.333,95.25,15.11]
[1644670341780,49.4747,95.333,95.251,0.25]
[1644670341979,49.4747,95.333,95.252,5.247]
[1644670342380,49.4747,95.333,95.253,46.26734613]
[1644670342577,49.4747,95.333,95.254,5.246]
[1644670342775,49.4747,95.333,95.255,0.25]
[1644670342976,49.4747,95.333,95.256,5.246]
[1644670343177,49.4747,95.333,95.256,7.62966791]
[1644670343376,49.4747,95.333,95.257,0.25]
[1644670343576,49.4747,95.333,95.258,5.246]
[1644670343778,49.4747,95.333,95.259,0.25]
[1644670343977,49.4747,95.333,95.26,5.246]
[1644670344178,49.4747,95.333,95.26,7.62966791]
[1644670344477,49.4747,95.333,95.261,2.63366791]
[1644670344678,49.4747,95.333,95.262,5.246]
[1644670344884,1.46640056,95.363,95.262,5.246]
[1644670344885,1.46640056,95.363,95.271,104.98]
[1644670345079,5.246,95.394,95.272,46.2417]
[1644670345080,1.46640056,95.387,95.272,46.2417]
[1644670345278,1.46640056,95.401,95.274,1.47875973]
[1644670345479,1.46640056,95.407,95.28,1.47875973]
[1644670345678,5.244,95.415,95.29,15.11]
[1644670345880,34.09516895,95.414,95.292,41.64754728]
[1644670346079,15.7382,95.41,95.311,36.32085719]
[1644670346279,15.7382,95.41,95.312,52.3075]
[1644670346582,15.7382,95.41,95.312,54.69116791]
[1644670346979,15.7382,95.41,95.313,2.38366791]
[1644670347182,0.25,95.409,95.314,5.243]
[1644670347382,0.25,95.409,95.314,5.493]
[1644670347679,0.25,95.409,95.314,7.87666791]
[1644670348980,5.493,95.409,95.314,7.87666791]
[1644670349180,5.493,95.409,95.32,15.7356]
[1644670349384,5.493,95.409,95.331,39.06123357]
[1644670349681,5.493,95.409,95.332,0.25]
[1644670350084,15.7383,95.4,95.33,15.11]
[1644670350284,5.493,95.399,95.295,2.38366791]
[1644670350484,23.6455,95.398,95.295,2.38366791]
[1644670350683,23.6455,95.398,95.25,15.11]
[1644670350684,15.11,95.39,95.25,15.11]
[1644670350888,27.9454,95.389,95.25,15.11]
[1644670351086,1.21075714,95.388,95.251,47.99008587]
[1644670351284,5.495,95.387,95.251,47.99008587]
[1644670351487,7.87866791,95.387,95.252,27.03096791]
[1644670351686,7.87866791,95.387,95.253,5.495]
[1644670351986,5.495,95.387,95.253,7.87866791]
[1644670352190,23.3548,95.386,95.254,2.38366791]
[1644670352393,5.245,95.385,95.255,5.245]
[1644670352593,5.495,95.385,95.255,5.495]
[1644670352887,15.7478,95.35,95.256,2.38366791]
[1644670353087,5.246,95.349,95.257,5.245]
[1644670353287,0.25,95.349,95.257,5.495]
[1644670353488,0.25,95.349,95.27,15.11]
[1644670353687,0.25,95.349,95.272,45.08378455]
[1644670353989,0.25,95.349,95.273,5.246]
[1644670353990,15.7478,95.34,95.273,5.246]
[1644670354288,4.25740093,95.339,95.273,5.246]
[1644670354489,5.246,95.338,95.273,5.246]
[1644670354688,0.25,95.337,95.273,5.246]
[1644670354894,5.246,95.336,95.273,5.246]
[1644670355189,0.25,95.335,95.273,5.246]
[1644670355388,5.246,95.334,95.273,5.246]
[1644670355790,15.7514,95.32,95.273,5.246]
[1644670356190,0.25,95.319,95.273,5.246]
[1644670356394,5.496,95.319,95.273,5.246]
[1644670358396,5.496,95.319,95.247,0.91553458]
[1644670358397,15.7525,95.31,95.247,0.91553458]
[1644670358596,5.247,95.309,95.247,0.91553458]
[1644670358794,5.497,95.309,95.247,0.91553458]
[1644670359395,26.39985563,95.308,95.247,49.24466694]
[1644670359904,15.7566,95.3,95.247,49.24466694]
[1644670360296,15.7566,95.3,95.248,0.25]
[1644670360495,0.25,95.299,95.248,0.25]
[1644670360697,46.834,95.318,95.248,0.25]
[1644670360896,5.497,95.317,95.248,0.25]
[1644670361097,5.247,95.317,95.248,0.25]
[1644670362298,0.25,95.316,95.248,0.25]
[1644670362500,5.247,95.315,95.248,0.25]
[1644670362899,5.247,95.317,95.248,0.25]
[1644670363703,5.247,95.317,95.248,2.63366791]
[1644670364103,15.7484,95.34,95.25,15.11]
[1644670364306,0.25,95.339,95.251,23.3411]
[1644670364505,5.496,95.339,95.252,5.246]
[1644670364705,5.496,95.339,95.253,0.25]
[1644670364905,5.496,95.339,95.254,5.246]
[1644670365108,15.7484,95.34,95.254,5.246]
[1644670365306,15.7484,95.34,95.255,2.63366791]
[1644670365704,15.7484,95.34,95.256,2.38366791]
[1644670365905,5.246,95.346,95.27,15.11]
[1644670366336,5.246,95.346,95.254,5.246]
[1644670366540,2.38366791,95.345,95.247,0.91553458]
[1644670366738,5.246,95.344,95.247,0.91553458]
[1644670366935,23.688,95.347,95.247,0.91553458]
[1644670367136,0.25,95.343,95.248,37.0472285]
[1644670367336,5.246,95.342,95.248,37.0472285]
[1644670367535,5.246,95.342,95.249,0.25]
[1644670367739,15.7475,95.34,95.249,0.25]
[1644670367937,5.246,95.339,95.249,0.25]
[1644670368135,5.496,95.339,95.249,0.25]
[1644670368335,0.25,95.338,95.249,0.25]
[1644670368536,8.59063437,95.336,95.249,0.25]
[1644670368735,5.497,95.335,95.249,0.25]
[1644670369536,15.753,95.32,95.249,0.25]
[1644670369737,0.25,95.319,95.249,0.25]
[1644670370339,0.25,95.319,95.249,2.63366791]
[1644670370937,0.25,95.328,95.25,23.274]
[1644670371138,0.25,95.329,95.25,23.274]
[1644670371342,34.61115634,95.329,95.251,2.63366791]
[1644670371544,0.25,95.329,95.251,2.63366791]
[1644670371749,0.25,95.329,95.252,2.38366791]
[1644670371943,5.247,95.328,95.252,2.38366791]
[1644670372140,5.247,95.328,95.253,0.25]
[1644670372338,0.25,95.327,95.253,0.25]
[1644670372539,5.247,95.346,95.26,15.11]
[1644670372741,15.7468,95.35,95.261,5.496]
[1644670373044,5.246,95.367,95.261,7.87966791]
[1644670373240,5.246,95.367,95.262,50.97506791]
[1644670373640,15.7441,95.36,95.263,2.63366791]
[1644670373842,5.495,95.359,95.264,5.245]
[1644670374043,5.495,95.359,95.264,7.62866791]
[1644670374241,5.495,95.359,95.265,2.63366791]
[1644670374442,0.25,95.359,95.27,15.11]
[1644670374642,0.25,95.359,95.271,5.245]
[1644670374942,0.25,95.359,95.271,7.87866791]
[1644670375141,0.25,95.359,95.272,2.38366791]
[1644670375343,0.25,95.359,95.273,5.495]
[1644670375545,5.245,95.358,95.273,0.25]
[1644670375741,5.245,95.358,95.274,2.38366791]
[1644670375942,5.245,95.359,95.274,2.38366791]
[1644670376148,5.245,95.359,95.275,0.25]
[1644670376341,5.245,95.359,95.28,15.11]
[1644670376541,6.24068013,95.349,95.281,37.88819531]
[1644670376741,5.245,95.348,95.281,38.13819531]
[1644670377141,0.25,95.347,95.281,38.13819531]
[1644670377340,5.245,95.346,95.281,38.13819531]
[1644670377742,0.25,95.345,95.281,38.13819531]
[1644670377943,5.245,95.344,95.281,38.13819531]
[1644670378147,0.25,95.345,95.282,2.38366791]
[1644670378343,0.25,95.345,95.283,0.25]
[1644670378943,5.245,95.344,95.283,0.25]
[1644670379142,5.245,95.344,95.281,37.88819531]
[1644670379143,15.7472,95.34,95.281,37.88819531]
[1644670379345,5.496,95.339,95.281,37.88819531]
[1644670379544,5.496,95.339,95.24,15.11]
[1644670379845,5.496,95.339,95.241,5.246]
[1644670380043,22.7599,95.338,95.241,28.4733]
[1644670380244,5.497,95.337,95.241,28.4733]
[1644670380444,0.25,95.337,95.241,28.4733]
[1644670380648,0.25,95.337,95.242,45.42236925]
[1644670380846,5.247,95.336,95.242,45.42236925]
[1644670381246,0.25,95.335,95.242,45.42236925]
[1644670381646,5.247,95.334,95.242,45.42236925]
[1644670381846,15.7501,95.33,95.243,0.25]
[1644670382047,9.67357273,95.328,95.243,0.25]
[1644670382245,5.497,95.327,95.243,0.25]
[1644670382448,5.497,95.327,95.242,45.42236925]
[1644670383851,5.497,95.327,95.243,0.25]
[1644670384651,5.247,95.327,95.244,2.38366791]
[1644670384870,5.247,95.327,95.245,5.497]
[1644670385050,15.7501,95.33,95.245,5.497]
[1644670385251,15.7501,95.33,95.246,2.38366791]
[1644670385650,15.7501,95.33,95.247,0.25]
[1644670386051,0.25,95.329,95.25,15.11]
[1644670386251,0.25,95.329,95.251,0.25]
[1644670386557,0.25,95.329,95.251,2.63366791]
[1644670386751,0.25,95.329,95.252,2.38366791]
[1644670387151,0.25,95.329,95.253,0.25]
[1644670387552,0.25,95.329,95.254,2.38366791]
[1644670387754,0.25,95.329,95.255,0.25]
[1644670388054,0.25,95.329,95.256,2.38366791]
[1644670388256,0.25,95.329,95.257,40.53128651]
[1644670388655,0.25,95.329,95.257,42.91495442]
[1644670391062,5.496,95.329,95.257,42.91495442]
[1644670391260,5.246,95.329,95.257,42.91495442]
[1644670391461,1.46640056,95.344,95.27,15.11]
[1644670391661,5.246,95.363,95.271,23.3642]
[1644670391662,1.46640056,95.356,95.271,23.3642]
[1644670391959,6.71140056,95.367,95.271,31.24286791]
[1644670392160,1.46640056,95.372,95.272,2.38366791]
[1644670392378,0.25,95.366,95.273,47.13909907]
[1644670392579,0.25,95.366,95.273,47.38909907]
[1644670392778,0.25,95.366,95.28,15.7422]
[1644670392978,5.245,95.365,95.29,15.11]
[1644670393178,9.49157809,95.365,95.291,35.12013139]
[1644670393378,0.25,95.364,95.291,35.37013139]
[1644670393581,5.245,95.363,95.292,24.0407]
[1644670393778,0.25,95.362,95.293,0.25]
[1644670393978,0.25,95.362,95.293,2.63366791]
[1644670394179,0.25,95.362,95.294,2.38366791]
[1644670394681,0.25,95.362,95.295,0.25]
[1644670394877,5.245,95.374,95.295,10.63]
[1644670395078,1.46640056,95.381,95.3,15.11]
[1644670395277,1.46640056,95.382,95.301,0.25]
[1644670395480,1.46640056,95.391,95.301,7.87766791]
[1644670395879,1.46640056,95.397,95.302,2.38366791]
[1644670396078,1.46640056,95.399,95.302,2.38366791]
[1644670396281,1.46640056,95.399,95.303,0.25]
[1644670396678,1.46640056,95.399,95.304,2.38366791]
[1644670396881,1.46640056,95.403,95.31,15.737]
[1644670397077,1.46640056,95.406,95.32,15.11]
[1644670397280,1.46640056,95.406,95.321,62.2591119]
[1644670397480,1.46640056,95.409,95.321,64.64277981]
[1644670397683,17.20340056,95.41,95.322,5.242]
[1644670397880,17.20340056,95.41,95.322,7.62566791]
[1644670398082,1.46640056,95.408,95.323,0.25]
[1644670398386,2.35722972,95.405,95.324,5.242]
[1644670398581,3.82363028,95.405,95.324,5.242]
[1644670398884,0.25,95.404,95.325,0.25]
[1644670399081,5.493,95.404,95.33,15.11]
[1644670399381,5.493,95.404,95.331,0.25]
[1644670399882,5.243,95.404,95.331,0.25]
[1644670400080,15.737,95.41,95.331,0.25]
[1644670400282,1.46640056,95.409,95.331,0.25]
[1644670400481,1.46640056,95.409,95.332,5.242]
[1644670400681,15.737,95.41,95.332,5.242]